bitfinex-derivatives/quotes_ETHF0:USTF0_20241105
["timestamp","ask_amount","ask_price","bid_price","bid_amount"]
[1730846259633,0.98850855,2426.2,2426.1,4.39592525]
[1730846260536,0.98850855,2426.2,2426.1,4.80812525]
[1730846262630,2.17593894,2426.2,2426.1,4.80812525]
[1730846263235,2.17593894,2426.2,2426.1,4.07835246]
[1730846263435,2.17593894,2426.2,2426.1,4.80346226]
[1730846264136,2.58811894,2426.2,2426.1,0.7251098]
[1730846264341,2.58811894,2426.2,2426.1,1.13728473]
[1730846264634,2.58811894,2426.2,2426.1,0.69106804]
[1730846265240,2.58811894,2426.2,2426.1,0.27886804]
[1730846267745,2.17593894,2426.2,2425.9,1.07641364]
[1730846267939,0.27730855,2426.0,2425.9,1.07641364]
[1730846268142,0.27730855,2426.0,2425.9,1.9346297]
[1730846268441,0.93580855,2426.0,2425.9,1.9346297]
[1730846270338,0.93580855,2426.0,2425.9,0.41223]
[1730846271040,0.93580855,2426.0,2425.9,1.93312448]
[1730846272645,0.93580855,2426.0,2425.9,0.41223]
[1730846272840,0.93580855,2426.0,2425.9,0.85664867]
[1730846273046,0.93580855,2426.0,2425.9,1.9330416]
[1730846273347,0.93580855,2426.0,2425.9,0.41223]
[1730846274339,0.93580855,2426.0,2425.8,1.07641364]
[1730846274547,0.6585,2426.0,2425.9,0.41223]
[1730846275150,0.93580855,2426.0,2425.9,0.41223]
[1730846277041,0.6585,2426.0,2425.9,0.41223]
[1730846278742,4.39523039,2426.3,2426.1,0.41219]
[1730846279453,4.39523039,2426.3,2426.1,1.13959]
[1730846280348,4.39523039,2426.3,2426.1,0.41219]
[1730846281245,4.80740039,2426.3,2426.1,0.41219]
[1730846282155,0.27730855,2426.2,2426.1,0.41219]
[1730846282349,0.27730855,2426.2,2426.1,0.68977663]
[1730846282859,0.27730855,2426.2,2426.1,0.41219]
[1730846283047,0.27730855,2426.2,2426.1,0.6897703]
[1730846283247,0.27730855,2426.2,2426.1,0.6897803]
[1730846284752,1.46473894,2426.2,2426.1,0.6897803]
[1730846286356,1.46473894,2426.2,2426.1,0.4122]
[1730846286658,1.46473894,2426.2,2426.1,0.68978171]
[1730846294265,1.46473894,2426.2,2426.1,1.13459551]
[1730846294669,1.46473894,2426.2,2426.1,0.68978171]
[1730846294860,1.46473894,2426.2,2426.1,1.13458353]
[1730846295066,1.46473894,2426.2,2426.1,0.68978171]
[1730846295475,1.46473894,2426.2,2426.1,1.13463933]
[1730846296866,1.46473894,2426.2,2426.1,2.2116096]
[1730846297173,1.46473894,2426.2,2426.1,1.48861364]
[1730846297376,1.46473894,2426.2,2426.1,2.21161545]
[1730846297967,1.87691894,2426.2,2426.1,0.27805735]
[1730846298167,1.46473894,2426.2,2426.1,0.27805735]
[1730846299477,1.46473894,2426.2,2426.1,0.69032976]
[1730846299672,1.46473894,2426.2,2426.1,2.21179954]
[1730846299879,1.46473894,2426.2,2426.1,1.1353859]
[1730846300374,0.27730855,2426.2,2426.1,3.72512913]
[1730846300569,0.27730855,2426.2,2426.1,4.26268089]
[1730846300771,0.27730855,2426.2,2426.1,4.26211174]
[1730846300967,0.27730855,2426.2,2426.1,3.72451308]
[1730846301179,0.27730855,2426.2,2426.1,4.26215991]
[1730846301371,0.27730855,2426.2,2426.1,2.21118349]
[1730846302081,0.27730855,2426.2,2426.1,3.18880584]
[1730846302472,0.27730855,2426.2,2426.1,4.80354486]
[1730846302869,0.27730855,2426.2,2426.1,3.18880584]
[1730846303578,0.27730855,2426.2,2426.1,4.80354486]
[1730846303970,0.27730855,2426.2,2426.1,4.35802423]
[1730846304177,0.27730855,2426.2,2426.1,4.80263534]
[1730846304573,0.27730855,2426.2,2426.1,2.20945956]
[1730846304778,0.27730855,2426.2,2426.1,3.72493847]
[1730846305081,0.27730855,2426.2,2426.1,2.20945956]
[1730846305379,0.27730855,2426.2,2426.1,3.7250048]
[1730846305779,4.6621,2426.5,2426.1,8.92366212]
[1730846305978,4.6621,2426.5,2426.4,0.41215]
[1730846306280,4.6621,2426.5,2426.4,1.13451957]
[1730846306471,4.93940855,2426.5,2426.4,1.84831957]
[1730846307273,4.93940855,2426.5,2426.4,1.12595]
[1730846307478,4.93940855,2426.5,2426.4,1.84794108]
[1730846308182,4.93940855,2426.5,2426.4,1.40361864]
[1730846309676,6.12683894,2426.5,2426.4,1.40361864]
[1730846310981,2.91903894,2426.5,2426.4,1.12595]
[1730846311185,2.91903894,2426.5,2426.4,1.40358195]
[1730846311383,2.91903894,2426.5,2426.4,1.40356449]
[1730846311776,6.12683894,2426.5,2426.4,1.40356449]
[1730846311983,2.91903894,2426.5,2426.4,1.40356449]
[1730846312281,4.67253894,2426.5,2426.4,1.40356449]
[1730846312676,4.67253894,2426.5,2426.4,1.12595]
[1730846314077,4.67253894,2426.5,2426.4,1.40357384]
[1730846317589,4.67253894,2426.5,2426.4,1.40361505]
[1730846318783,4.67253894,2426.5,2426.4,1.12595]
[1730846318986,4.67253894,2426.5,2426.4,1.40358556]
[1730846323184,1.46473894,2426.5,2426.4,1.40358556]
[1730846323374,4.67253894,2426.5,2426.4,1.40358556]
[1730846325289,1.46473894,2426.5,2426.4,1.40358556]
[1730846325486,4.67253894,2426.5,2426.4,1.40358556]
[1730846325980,3.9109,2426.9,2426.4,8.90951353]
[1730846326180,0.7031,2426.9,2426.8,0.41208]
[1730846326585,0.98040855,2426.9,2426.8,1.83775283]
[1730846326794,0.98040855,2426.9,2426.8,2.91124194]
[1730846326989,1.4951,2427.0,2426.8,6.61996194]
[1730846327195,1.77240855,2427.0,2426.9,0.68953181]
[1730846328989,1.02940855,2427.0,2426.9,0.68953181]
[1730846329592,0.27730855,2427.0,2426.9,0.68953181]
[1730846333897,1.04040855,2427.0,2426.9,0.68953181]
[1730846334294,1.04040855,2427.0,2426.9,0.41206]
[1730846338194,0.42215244,2427.0,2426.9,0.41206]
[1730846344202,3.9559,2427.2,2426.7,2.91678911]
[1730846344394,4.7471,2427.2,2427.1,0.41203]
[1730846344893,1.5393,2427.2,2427.1,0.41203]
[1730846363911,6.84673039,2427.2,2426.6,1.79848911]
[1730846364107,1.59948039,2427.0,2426.8,0.41207]
[1730846364315,0.7536,2426.9,2426.8,0.41207]
[1730846364507,1.5347,2426.9,2426.8,0.41207]
[1730846364809,1.5347,2426.9,2426.8,0.41208]
[1730846365004,1.5347,2426.9,2426.7,0.7532]
[1730846365005,1.94677,2426.9,2426.7,1.16529]
[1730846365206,0.7737,2426.8,2426.7,1.16529]
[1730846367315,1.18578,2426.8,2426.7,0.41209]
[1730846369212,1.18578,2426.8,2426.7,0.68866114]
[1730846371609,1.18578,2426.8,2426.7,0.27657114]
[1730846371820,0.4121,2426.7,2426.6,0.4121]
[1730846372118,0.4121,2426.7,2426.6,0.68877667]
[1730846372503,0.4121,2426.7,2426.6,0.27667667]
[1730846372811,0.41211,2426.6,2426.5,1.15362]
[1730846373011,1.14301,2426.6,2426.5,1.43029257]
[1730846373712,0.7309,2426.6,2426.5,1.43029257]
[1730846374513,1.14301,2426.6,2426.5,1.43029257]
[1730846375515,0.7309,2426.6,2426.5,1.43010114]
[1730846375706,0.7309,2426.6,2426.5,1.15362]
[1730846375906,0.7309,2426.6,2426.5,1.43009569]
[1730846376110,1.14301,2426.6,2426.5,1.43009569]
[1730846376313,1.14301,2426.6,2426.5,1.15362]
[1730846377813,1.14301,2426.6,2426.5,0.7415]
[1730846378819,4.35081,2426.6,2426.5,0.7415]
[1730846379924,4.35081,2426.6,2426.5,1.15363]
[1730846380327,4.35081,2426.6,2426.5,0.7415]
[1730846381727,0.41215,2426.5,2426.3,1.18565]
[1730846381918,0.41215,2426.5,2426.4,0.7577]
[1730846383926,3.61995,2426.5,2426.4,0.7577]
[1730846384421,4.37245,2426.5,2426.4,1.16985]
[1730846385135,1.16465,2426.5,2426.4,1.16985]
[1730846385430,4.37245,2426.5,2426.4,1.16985]
[1730846386026,4.37245,2426.5,2426.4,0.7577]
[1730846388220,3.61995,2426.5,2426.4,0.7577]
[1730846388426,3.61995,2426.5,2426.4,1.16985]
[1730846388927,0.41215,2426.5,2426.4,1.16985]
[1730846390427,0.41215,2426.5,2426.4,0.7577]
[1730846391535,3.61995,2426.5,2426.4,0.7577]
[1730846393739,0.41215,2426.5,2426.4,0.7577]
[1730846393934,3.61995,2426.5,2426.4,0.7577]
[1730846396140,3.61995,2426.5,2426.4,1.16985]
[1730846397339,0.41215,2426.5,2426.4,1.16985]
[1730846399541,4.35083,2426.6,2426.5,0.41213]
[1730846399743,0.41213,2426.5,2426.4,1.16984]
[1730846400236,3.2078,2426.7,2426.4,4.8793]
[1730846400438,3.2078,2426.7,2426.6,0.41211]
[1730846400647,0.41213,2426.5,2426.4,1.16985]
[1730846400940,0.41213,2426.5,2426.3,0.7735]
[1730846400941,6.3701,2426.6,2425.9,0.207]
[1730846401143,3.2078,2426.2,2426.1,1.17709]
[1730846404338,3.61998,2426.2,2426.1,0.7649]
[1730846404538,5.10538,2426.2,2426.1,0.7649]
[1730846405147,4.6932,2426.2,2425.6,3.17638414]
[1730846405441,0.4122,2426.1,2425.9,0.41223]
[1730846405645,4.6932,2426.2,2425.9,0.41223]
[1730846405944,0.41222,2426.0,2425.8,0.7894]
[1730846406141,4.6932,2426.2,2425.8,1.20164]
[1730846406342,0.41223,2425.9,2425.8,1.20164]
[1730846406642,3.62003,2425.9,2425.8,1.20164]
[1730846407236,3.2078,2425.9,2425.8,1.20164]
[1730846409236,3.2078,2425.9,2425.8,1.4783291]
[1730846409635,3.2078,2425.9,2425.8,1.20164]
[1730846411042,3.62003,2425.9,2425.8,0.7894]
[1730846411453,0.41223,2425.9,2425.8,0.7894]
[1730846411747,0.41223,2425.9,2425.8,1.20165]
[1730846413247,0.41223,2425.9,2425.8,0.7894]
[1730846413951,0.41223,2425.9,2425.5,2.2609195]
[1730846413952,0.41225,2425.8,2425.6,0.7403]
[1730846414145,3.62005,2425.8,2425.6,0.7403]
[1730846414342,3.62005,2425.8,2425.6,1.15258]
[1730846415641,3.2078,2425.8,2425.6,0.7403]
[1730846415841,1.88067,2425.7,2425.6,0.7403]
[1730846416249,2.66737,2425.7,2425.6,1.15258]
[1730846418256,2.2551,2425.7,2425.6,1.15258]
[1730846420759,1.5357,2425.7,2425.6,1.15258]
[1730846421454,0.749,2425.7,2425.6,1.15258]
[1730846422757,3.62005,2425.8,2425.6,1.15258]
[1730846423855,3.62005,2425.8,2425.7,0.41227]
[1730846424353,3.2078,2425.8,2425.7,0.41227]
[1730846425757,0.7419,2425.9,2425.8,0.41225]
[1730846426157,0.7635,2426.0,2425.9,0.41223]
[1730846426359,0.41226,2425.8,2425.6,1.15258]
[1730846426564,3.62004,2425.9,2425.7,0.41227]
[1730846427571,0.41224,2425.9,2425.7,0.41227]
[1730846427869,3.2078,2425.8,2425.7,0.41227]
[1730846432477,0.41224,2425.9,2425.7,0.41227]
[1730846432676,3.62004,2425.9,2425.7,0.41227]
[1730846433082,0.41225,2425.8,2425.7,0.41227]
[1730846433266,3.2078,2425.9,2425.7,0.41227]
[1730846433475,3.62004,2425.9,2425.7,0.41227]
[1730846434176,3.62004,2425.9,2425.8,0.41225]
[1730846441886,3.2078,2425.9,2425.6,1.81378911]
[1730846442186,0.41226,2425.8,2425.7,0.27723763]
[1730846442382,1.18856,2425.8,2425.7,0.27723763]
[1730846442586,0.41227,2425.7,2425.6,0.41228]
[1730846442785,1.94517,2425.7,2425.6,0.68949313]
[1730846444579,1.94517,2425.7,2425.6,2.20721007]
[1730846447483,1.94517,2425.7,2425.6,3.73427178]
[1730846448085,1.94517,2425.7,2425.6,2.20721007]
[1730846448290,1.94517,2425.7,2425.6,3.73425701]
[1730846448587,1.94517,2425.7,2425.6,3.01281605]
[1730846448885,1.94517,2425.7,2425.6,3.73459182]
[1730846449284,1.94517,2425.7,2425.6,2.66110271]
[1730846449689,1.94517,2425.7,2425.6,3.7369852]
[1730846450283,1.94517,2425.7,2425.6,4.27584173]
[1730846451292,1.94517,2425.7,2425.6,4.81348453]
[1730846452586,1.94517,2425.7,2425.6,4.27584173]
[1730846452790,1.94517,2425.7,2425.6,4.81349948]
[1730846452988,1.94517,2425.7,2425.6,4.81436727]
[1730846454991,1.94517,2425.7,2425.6,3.86442952]
[1730846454992,3.13260039,2425.7,2425.6,3.86442952]
[1730846455187,3.13260039,2425.7,2425.6,1.79840023]
[1730846455794,3.13260039,2425.7,2425.6,1.35405829]
[1730846456193,3.13260039,2425.7,2425.6,2.88232489]
[1730846456494,3.13260039,2425.7,2425.6,2.8802826]
[1730846457089,3.13260039,2425.7,2425.6,1.352016]
[1730846457492,3.13260039,2425.7,2425.6,2.8803242]
[1730846457994,3.13260039,2425.7,2425.6,1.352016]
[1730846458189,3.13260039,2425.7,2425.6,2.88033387]
[1730846458989,1.94517,2425.7,2425.6,3.29261387]
[1730846459303,1.94517,2425.7,2425.6,1.764296]
[1730846459987,1.94517,2425.7,2425.6,1.48865746]
[1730846460202,1.94517,2425.7,2425.6,1.7643262]
[1730846460398,1.94517,2425.7,2425.6,3.29262488]
[1730846460699,1.17837,2425.7,2425.6,3.29262488]
[1730846461094,1.17837,2425.7,2425.6,2.21624742]
[1730846461398,1.17837,2425.7,2425.6,2.21623541]
[1730846461597,4.39636,2425.8,2425.7,0.41227]
[1730846461895,3.62006,2425.8,2425.7,1.76436377]
[1730846462201,3.2078,2425.8,2425.7,2.49316377]
[1730846462599,3.2078,2425.8,2425.7,4.02138202]
[1730846463498,3.2078,2425.8,2425.7,4.0211799]
[1730846463900,3.2078,2425.8,2425.7,4.02124419]
[1730846464496,3.2078,2425.8,2425.7,3.60897419]
[1730846464697,3.2078,2425.8,2425.7,4.02124419]
[1730846466501,0.41225,2425.9,2425.7,3.60899544]
[1730846466703,0.41225,2425.9,2425.8,0.68793999]
[1730846466902,3.62005,2425.9,2425.8,0.68793999]
[1730846467393,3.2078,2425.9,2425.8,0.68793999]
[1730846467793,3.62003,2425.9,2425.8,1.76436502]
[1730846468391,3.2078,2425.9,2425.8,1.76436502]
[1730846468600,3.62003,2425.9,2425.8,1.76436502]
[1730846469706,3.2078,2425.9,2425.8,1.76436502]
[1730846469902,3.2078,2425.9,2425.8,1.48867503]
[1730846470101,3.2078,2425.9,2425.8,4.05579932]
[1730846470298,3.2078,2425.9,2425.8,5.13199939]
[1730846471199,3.2078,2425.9,2425.8,9.25439939]
[1730846471392,3.2078,2425.9,2425.8,10.64235096]
[1730846471591,3.2078,2425.9,2425.8,13.6978479]
[1730846472208,2.58925296,2425.9,2425.8,13.6978479]
[1730846472399,3.2078,2425.9,2425.8,13.6978479]
[1730846472601,3.2078,2425.9,2425.8,11.55545325]
[1730846472805,3.2078,2425.9,2425.8,13.70702417]
[1730846473107,3.2078,2425.9,2425.8,11.55545325]
[1730846473306,3.2078,2425.9,2425.8,12.03305364]
[1730846473800,3.2078,2425.9,2425.8,13.43031337]
[1730846474006,3.2078,2425.9,2425.8,13.7057526]
[1730846474702,4.7572,2426.4,2425.8,11.14202047]
[1730846474907,4.7572,2426.4,2426.3,0.41217]
[1730846475105,4.7572,2426.4,2426.3,0.68760923]
[1730846475312,4.7572,2426.4,2426.3,0.41217]
[1730846476803,4.7572,2426.4,2426.1,1.07480432]
[1730846477007,5.16935,2426.4,2426.2,0.68727416]
[1730846477212,5.16935,2426.4,2426.2,0.41217]
[1730846477399,4.7572,2426.4,2426.3,1.13037]
[1730846477710,3.2078,2426.4,2426.3,1.40542179]
[1730846478103,3.2078,2426.4,2426.3,2.19122179]
[1730846479210,0.7645,2426.5,2426.3,1.77905179]
[1730846479419,41.5627,2426.6,2426.3,1.504]
[1730846479615,42.73932,2426.6,2426.4,0.41214]
[1730846479816,42.3272,2426.6,2426.5,0.41213]
[1730846480907,40.8,2426.6,2426.5,0.41213]
[1730846481114,3.2078,2427.0,2426.5,0.27481046]
[1730846481304,3.2078,2427.0,2426.8,0.41206]
[1730846481501,3.2078,2427.0,2426.9,1.16376]
[1730846482213,44.0078,2427.0,2426.9,1.16376]
[1730846483112,3.2078,2427.0,2426.9,1.16376]
[1730846487216,4.39523039,2427.1,2427.0,0.41205]
[1730846488022,3.2078,2427.1,2427.0,0.41205]
[1730846488226,3.2078,2427.1,2427.0,1.13265]
[1730846491315,1.98502,2427.2,2427.1,0.41203]
[1730846491519,5.19282,2427.2,2427.1,0.41203]
[1730846492740,1.98502,2427.2,2427.1,0.41203]
[1730846493023,5.19282,2427.2,2427.1,0.41203]
[1730846497222,1.98502,2427.2,2427.1,0.41203]
[1730846498732,1.573,2427.2,2427.0,0.7206]
[1730846498926,1.573,2427.2,2426.9,0.7517]
[1730846499130,1.573,2427.2,2427.1,0.41203]
[1730846502830,0.7829,2427.2,2427.1,0.41203]
[1730846503830,5.91723039,2427.3,2427.2,0.41201]
[1730846504833,5.91723039,2427.3,2427.2,1.14061]
[1730846505623,6.32923039,2427.3,2427.2,1.14061]
[1730846506127,4.7298,2427.3,2427.2,1.14061]
[1730846507024,5.1418,2427.3,2427.2,1.14061]
[1730846508431,1.934,2427.3,2427.2,1.14061]
[1730846508640,5.1418,2427.3,2427.2,1.14061]
[1730846510622,1.934,2427.3,2427.2,1.14061]
[1730846511024,5.1418,2427.3,2427.2,1.14061]
[1730846512337,6.32923039,2427.3,2427.2,1.14061]
[1730846512925,5.1418,2427.3,2427.2,1.14061]
[1730846514432,5.91723039,2427.3,2426.9,0.7446]
[1730846514734,3.61985,2427.0,2426.9,1.19515]
[1730846514938,3.2078,2427.0,2426.9,1.19515]
[1730846515236,4.7339,2427.0,2426.9,1.19515]
[1730846517932,1.5261,2427.0,2426.9,1.19515]
[1730846519139,4.7339,2427.0,2426.9,1.19515]
[1730846521234,1.5261,2427.0,2426.9,1.19515]
[1730846521539,4.7339,2427.0,2426.9,1.19515]
[1730846522137,0.41209,2426.8,2426.6,1.16171]
[1730846522336,3.2078,2426.7,2426.6,1.90311]
[1730846522532,3.2078,2426.7,2426.6,1.15351]
[1730846525042,1.17797,2426.9,2426.6,1.15351]
[1730846525439,3.2078,2426.8,2426.6,1.15351]
[1730846526043,0.41208,2426.8,2426.6,1.15351]
[1730846526340,3.61988,2426.8,2426.6,1.15351]
[1730846526540,3.2078,2426.8,2426.7,0.4121]
[1730846526842,3.61988,2426.8,2426.7,0.4121]
[1730846527045,0.41208,2426.8,2426.7,0.4121]
[1730846527236,3.61988,2426.8,2426.7,0.4121]
[1730846528544,3.2078,2426.8,2426.7,0.4121]
[1730846528741,3.61988,2426.8,2426.7,0.4121]
[1730846532842,0.41208,2426.8,2426.7,0.4121]
[1730846533051,3.61988,2426.8,2426.7,0.4121]
[1730846533845,0.41208,2426.8,2426.7,0.4121]
[1730846534050,3.61988,2426.8,2426.7,0.4121]
[1730846536746,0.41208,2426.8,2426.7,0.4121]
[1730846537551,3.61988,2426.8,2426.7,0.4121]
[1730846545347,0.41208,2426.8,2426.7,0.4121]
[1730846552555,0.4121,2426.7,2426.6,1.1535]
[1730846553659,0.4121,2426.7,2426.6,1.42827253]
[1730846554060,0.4121,2426.7,2426.6,1.1535]
[1730846554560,0.4121,2426.7,2426.6,1.42830137]
[1730846555456,0.4121,2426.7,2426.6,1.42830316]
[1730846555665,0.4121,2426.7,2426.6,1.1535]
[1730846555855,0.4121,2426.7,2426.6,1.42831699]
[1730846557062,3.6199,2426.7,2426.6,1.42831699]
[1730846557561,0.4121,2426.7,2426.6,1.42831699]
[1730846557962,3.6199,2426.7,2426.6,1.42831699]
[1730846558858,3.6199,2426.7,2426.6,1.01621699]
[1730846559059,3.6199,2426.7,2426.6,1.42832699]
[1730846559758,3.6199,2426.7,2426.6,1.15351]
[1730846560365,3.6199,2426.7,2426.6,2.22614096]
[1730846560568,3.6199,2426.7,2426.6,0.7414]
[1730846560758,3.6199,2426.7,2426.6,1.15351]
[1730846561860,3.6199,2426.7,2426.6,2.22614096]
[1730846563963,0.4121,2426.7,2426.6,2.22614096]
[1730846564164,3.6199,2426.7,2426.6,2.22614096]
[1730846565264,0.4121,2426.7,2426.6,2.22614096]
[1730846565665,3.6199,2426.7,2426.6,2.22614096]
[1730846566273,0.4121,2426.7,2426.6,2.22614096]
[1730846566668,3.6199,2426.7,2426.6,2.22614096]
[1730846569060,0.4121,2426.7,2426.6,2.22614096]
[1730846569267,3.6199,2426.7,2426.6,2.22614096]
[1730846570872,3.6199,2426.7,2426.6,2.50084754]
[1730846571668,0.4121,2426.7,2426.6,2.50084754]
[1730846571969,0.7659,2426.9,2426.6,2.08873754]
[1730846572268,3.6199,2426.7,2426.6,2.22613096]
[1730846572470,0.4121,2426.7,2426.6,2.50081732]
[1730846572874,3.6199,2426.7,2426.6,2.50081732]
[1730846573673,3.6199,2426.7,2426.6,2.22613096]
[1730846573974,3.6199,2426.7,2426.6,2.5008161]
[1730846576072,0.4121,2426.7,2426.6,2.5008161]
[1730846576274,3.6199,2426.7,2426.6,2.5008161]
[1730846576674,3.6199,2426.7,2426.6,2.50085829]
[1730846577580,3.6199,2426.7,2426.6,2.50092702]
[1730846578074,3.2078,2426.7,2426.6,4.02189609]
[1730846578277,3.9968,2427.0,2426.9,0.41206]
[1730846578479,3.2078,2427.0,2426.9,0.6868775]
[1730846579076,3.2078,2427.0,2426.9,8.47229561]
[1730846579276,3.2078,2427.0,2426.9,9.45325784]
[1730846579479,3.2078,2427.0,2426.9,8.91727739]
[1730846579769,1.8873,2427.3,2426.9,8.50521739]
[1730846579770,5.0951,2427.3,2426.9,8.50521739]
[1730846579973,5.0951,2427.3,2427.2,0.41201]
[1730846584873,1.8873,2427.3,2427.2,0.41201]
[1730846585178,3.6198,2427.3,2427.2,0.41201]
[1730846585373,5.1142,2427.3,2427.2,0.41201]
[1730846586586,4.7022,2427.3,2427.2,0.41201]
[1730846588777,1.4944,2427.3,2427.2,0.41201]
[1730846588980,4.7022,2427.3,2427.2,0.41201]
[1730846590182,1.4944,2427.3,2427.2,0.41201]
[1730846590388,4.7022,2427.3,2427.2,0.41201]
[1730846591890,1.4944,2427.3,2427.2,0.41201]
[1730846593283,4.7022,2427.3,2427.2,0.41201]
[1730846594584,45.5022,2427.3,2427.2,0.41201]
[1730846595090,4.7022,2427.3,2427.2,0.41201]
[1730846597091,1.4944,2427.3,2427.2,0.41201]
[1730846597790,4.7022,2427.3,2427.2,0.41201]
[1730846604089,1.4944,2427.3,2427.2,0.41201]
[1730846604289,4.7022,2427.3,2427.2,0.41201]
[1730846604493,1.4944,2427.3,2427.2,0.41201]
[1730846605292,4.7022,2427.3,2427.2,0.41201]
[1730846605488,1.4944,2427.3,2427.2,0.41201]
[1730846606586,4.7022,2427.3,2427.2,0.41201]
[1730846608198,1.4944,2427.3,2427.2,0.41201]
[1730846608496,3.2078,2427.3,2427.2,0.41201]
[1730846608885,3.2078,2427.3,2427.2,1.94751]
[1730846609282,1.4983,2427.8,2427.6,0.41195]
[1730846609483,1.4983,2427.8,2427.7,0.41193]
[1730846609891,42.2983,2427.8,2427.7,0.41193]
[1730846610386,3.61969,2428.0,2427.6,0.7523]
[1730846610387,3.2078,2428.0,2427.9,0.41189]
[1730846610698,3.2078,2428.0,2427.9,1.59932039]
[1730846610990,3.2078,2428.0,2427.9,5.71772039]
[1730846611696,3.2078,2428.3,2428.2,0.41184]
[1730846612094,3.2078,2428.3,2428.2,4.53024]
[1730846612700,3.2078,2428.3,2428.2,0.41184]
[1730846612997,3.2078,2428.3,2428.2,4.53024]
[1730846613597,0.41178,2428.6,2428.2,4.1184]
[1730846613794,3.2078,2428.7,2428.0,1.5128]
[1730846613795,3.61957,2428.7,2428.4,0.4118]
[1730846614704,3.61957,2428.7,2428.5,0.41179]
[1730846615407,3.2078,2428.7,2428.6,0.41178]
[1730846615601,3.61956,2428.7,2428.6,0.41178]
[1730846617904,3.2078,2428.7,2428.6,0.41178]
[1730846618106,44.0078,2428.7,2428.6,0.41178]
[1730846618603,3.2078,2428.7,2428.6,4.52938]
[1730846619102,3.2078,2428.7,2428.6,5.99108]
[1730846619907,3.2078,2428.7,2428.6,7.17851039]
[1730846621108,0.41168,2429.2,2429.0,0.4117]
[1730846621308,41.21168,2429.2,2429.0,1.59913039]
[1730846621708,0.41169,2429.1,2429.0,1.59913039]
[1730846622415,41.21168,2429.2,2429.0,5.71593039]
[1730846622706,41.21168,2429.2,2429.0,1.59913039]
[1730846622909,0.41169,2429.1,2429.0,1.18743039]
[1730846623207,0.41169,2429.1,2429.0,1.91113039]
[1730846623407,0.41169,2429.1,2429.0,6.02793039]
[1730846623605,1.5561,2429.4,2429.0,4.8405]
[1730846623805,0.41166,2429.3,2429.1,0.41169]
[1730846624200,1.96775,2429.4,2429.2,0.41167]
[1730846624405,1.5561,2429.4,2429.2,0.41167]
[1730846625311,1.96775,2429.4,2429.2,0.41167]
[1730846627507,1.96775,2429.4,2429.1,1.59911039]
[1730846628101,1.5561,2429.4,2429.1,0.41168]
[1730846628303,0.41166,2429.3,2429.0,1.59913039]
[1730846628511,0.4117,2429.1,2428.8,3.61953]
[1730846628698,1.5561,2429.4,2428.6,1.18743039]
[1730846628699,7.3246,2429.0,2428.6,1.18743039]
[1730846628898,3.2078,2428.7,2428.4,1.28343039]
[1730846629207,0.41179,2428.5,2428.4,1.18743039]
[1730846629608,45.6469,2428.5,2428.1,3.2078]
[1730846629816,0.41182,2428.4,2428.1,3.61965]
[1730846630216,0.41183,2428.3,2428.1,4.80708039]
[1730846630612,41.5293,2428.5,2428.1,4.39523039]
[1730846630913,41.94111,2428.5,2428.4,3.2078]
[1730846631312,46.05871,2428.5,2428.4,3.2078]
[1730846631612,46.05871,2428.5,2428.1,1.59928039]
[1730846631613,0.41182,2428.4,2428.1,1.59928039]
[1730846633218,0.41183,2428.3,2428.2,1.18743039]
[1730846638317,1.1411,2428.5,2428.2,1.59927039]
[1730846638713,0.7293,2428.5,2428.2,1.18743039]
[1730846638913,0.41181,2428.4,2428.2,1.18743039]
[1730846639218,0.41182,2428.4,2428.2,1.18743039]
[1730846639415,0.41181,2428.4,2428.2,1.59927039]
[1730846640114,0.41181,2428.4,2428.2,1.18743039]
[1730846640419,1.1411,2428.5,2428.3,0.41182]
[1730846640720,1.1411,2428.5,2428.3,1.59925039]
[1730846641223,0.41181,2428.4,2428.3,1.18743039]
[1730846652538,0.41184,2428.2,2428.1,1.94213039]
[1730846655635,0.41184,2428.2,2428.1,2.66523039]
[1730846656131,0.41184,2428.2,2428.1,3.35253039]
[1730846658941,3.8912,2428.4,2428.1,1.18743039]
[1730846659334,0.41184,2428.2,2428.1,1.18743039]
[1730846660039,1.14994,2428.2,2428.1,1.18743039]
[1730846664250,1.85004,2428.2,2428.1,1.18743039]
[1730846665546,40.8,2428.3,2428.2,0.41184]
[1730846665742,0.41175,2428.8,2428.6,0.41177]
[1730846665937,3.2078,2428.9,2428.7,0.7243]
[1730846666142,0.41174,2428.9,2428.7,2.32349039]
[1730846666338,2.1181,2429.0,2428.7,1.91173039]
[1730846666549,0.41174,2428.8,2428.7,1.91173039]
[1730846667448,0.41174,2428.8,2428.7,2.61953039]
[1730846667656,0.41174,2428.8,2428.7,3.03129039]
[1730846673954,0.41174,2428.8,2428.7,1.59919039]
[1730846675959,0.41173,2428.9,2428.7,1.59919039]
[1730846678352,4.34332,2429.0,2428.8,0.41173]
[1730846678557,3.2078,2429.0,2428.9,0.7034]
[1730846678761,3.2078,2429.0,2428.9,1.11512]
[1730846684067,40.8,2429.1,2428.9,0.7034]
[1730846684267,0.7247,2429.5,2429.0,4.39523039]
[1730846684570,0.7247,2429.5,2429.4,0.41164]
[1730846685069,0.7247,2429.5,2429.4,1.11144]
[1730846685966,0.7247,2429.5,2429.4,0.41164]
[1730846686763,1.13632,2429.5,2429.4,0.41164]
[1730846686971,0.7247,2429.5,2429.4,0.41164]
[1730846687561,4.8407,2429.5,2429.4,0.41164]
[1730846687762,4.8407,2429.5,2429.1,1.18743039]
[1730846687963,0.6702,2429.4,2429.3,0.41165]
[1730846688477,4.7862,2429.4,2429.3,0.41165]
[1730846693776,0.41166,2429.3,2429.2,0.41167]
[1730846694469,0.41167,2429.2,2429.1,1.18743039]
[1730846694677,1.76007,2429.2,2429.1,1.18743039]
[1730846695167,1.76007,2429.2,2429.1,1.59912039]
[1730846695363,1.3484,2429.2,2429.1,1.59912039]
[1730846695577,1.76007,2429.2,2429.1,1.59912039]
[1730846697268,1.76007,2429.2,2429.1,0.41169]
[1730846697468,1.76007,2429.2,2429.1,1.59912039]
[1730846699070,5.87687,2429.2,2429.1,1.18743039]